bitfinex-derivatives/quotes_BTCF0:USTF0_20241104
["timestamp","ask_amount","ask_price","bid_price","bid_amount"]
[1730685621041,0.54128004,69013.0,69012.0,0.00687731]
[1730685621457,0.072491,69005.0,69000.0,0.072495]
[1730685621635,0.06350088,69004.0,69000.0,0.072495]
[1730685622043,0.06350088,69004.0,69000.0,0.11674305]
[1730685622345,0.06350088,69004.0,69000.0,0.04424805]
[1730685622539,0.06350088,69004.0,68999.0,0.0367]
[1730685622735,0.0635088,69003.0,68999.0,0.0367]
[1730685622940,0.0635088,69002.0,69001.0,0.072495]
[1730685623134,0.073491,69005.0,69001.0,0.072495]
[1730685623135,0.0635088,69004.0,69001.0,0.072495]
[1730685623336,0.0635088,69003.0,69001.0,0.072495]
[1730685623536,0.073491,69005.0,69001.0,0.072495]
[1730685623537,0.0635088,69002.0,69001.0,0.072495]
[1730685624231,0.03550345,69002.0,69001.0,0.072495]
[1730685624432,0.02800535,69002.0,69001.0,0.072495]
[1730685624633,0.0635088,69002.0,69001.0,0.082495]
[1730685625038,0.02800535,69002.0,69001.0,0.072495]
[1730685625336,0.02900535,69002.0,69001.0,0.082495]
[1730685625946,0.03000535,69002.0,69001.0,0.086495]
[1730685626346,0.03000535,69002.0,69001.0,0.521255]
[1730685626734,0.002,69002.0,69001.0,0.521255]
[1730685626936,0.02800326,69014.0,69001.0,0.44876]
[1730685627234,0.02800226,69013.0,69012.0,0.072483]
[1730685627438,0.00112001,69021.0,69012.0,0.17788307]
[1730685627640,0.072472,69023.0,69018.0,0.13923024]
[1730685627847,0.072472,69023.0,69021.0,0.05724275]
[1730685628038,0.04433276,69026.0,69020.0,0.05724275]
[1730685628239,0.3608,69028.0,69027.0,0.072468]
[1730685628451,0.3608,69028.0,69027.0,0.11540051]
[1730685629053,0.433266,69028.0,69027.0,0.11540051]
[1730685629350,0.433266,69028.0,69027.0,0.072468]
[1730685630649,0.437266,69028.0,69027.0,0.072468]
[1730685631051,0.441266,69028.0,69027.0,0.072468]
[1730685631253,0.437266,69028.0,69027.0,0.072468]
[1730685631449,0.50503024,69028.0,69024.0,0.05724275]
[1730685631654,0.50503024,69028.0,69010.0,0.17423024]
[1730685631655,0.072468,69027.0,69026.0,0.04294147]
[1730685632038,0.072468,69027.0,69024.0,0.05724275]
[1730685632347,0.3608,69028.0,69027.0,0.072468]
[1730685632842,0.3638,69028.0,69027.0,0.072468]
[1730685634053,0.3648,69028.0,69027.0,0.072468]
[1730685634440,0.52476304,69028.0,69027.0,0.05127607]
[1730685634753,0.47077879,69028.0,69027.0,0.05127607]
[1730685634939,0.10997879,69028.0,69027.0,0.05127607]
[1730685636251,0.07447878,69028.0,69027.0,0.05127607]
[1730685636463,0.10996865,69028.0,69027.0,0.05127607]
[1730685636847,0.06548451,69028.0,69027.0,0.05127607]
[1730685637650,0.06648451,69028.0,69027.0,0.05827607]
[1730685638555,0.06448451,69028.0,69027.0,0.05827607]
[1730685638745,0.14452337,69030.0,69027.0,0.49787607]
[1730685639053,0.14452337,69042.0,69034.0,0.07246]
[1730685639246,0.0444787,69041.0,69040.0,0.072454]
[1730685640757,0.007,69042.0,69039.0,0.0731]
[1730685640952,0.05047831,69041.0,69040.0,0.073454]
[1730685642648,0.006,69041.0,69040.0,0.073454]
[1730685644051,0.014,69041.0,69040.0,0.074454]
[1730685644561,0.014,69041.0,69040.0,0.11711403]
[1730685646152,0.0726,69053.0,69040.0,0.61841027]
[1730685646349,0.3608,69070.0,69040.0,0.61841027]
[1730685646350,0.00120001,69070.0,69052.0,0.50003024]
[1730685646546,0.072418,69075.0,69072.0,0.072419]
[1730685646764,0.072418,69075.0,69069.0,0.13923024]
[1730685646765,0.072419,69074.0,69073.0,0.072419]
[1730685647154,0.0348,69076.0,69064.0,1.63923024]
[1730685647357,0.13923024,69070.0,69064.0,1.5]
[1730685647653,0.13923024,69070.0,69057.0,0.3608]
[1730685647654,0.072428,69065.0,69062.0,0.072431]
[1730685648157,0.0348,69069.0,69042.0,0.50003024]
[1730685648158,0.3608,69063.0,69042.0,0.50003024]
[1730685648459,0.072441,69052.0,69042.0,0.50003024]
[1730685648856,0.072447,69047.0,69045.0,0.072448]
[1730685649059,0.072449,69045.0,69042.0,0.072452]
[1730685649255,0.072451,69043.0,69038.0,0.072456]
[1730685649456,0.0337,69044.0,69040.0,0.072454]
[1730685649659,0.46875603,69043.0,69026.0,0.0336]
[1730685649963,0.46875603,69043.0,69024.0,0.0366]
[1730685649964,0.21698637,69032.0,69027.0,0.072467]
[1730685650259,0.14165603,69031.0,69028.0,0.072466]
[1730685650463,0.14165603,69031.0,69029.0,0.072465]
[1730685650464,0.10795603,69030.0,69029.0,0.072465]
[1730685650664,0.18697305,69030.0,69024.0,0.13923024]
[1730685650861,0.18697305,69030.0,69024.0,0.072471]
[1730685650862,0.072468,69027.0,69024.0,0.072471]
[1730685651160,0.02799137,69026.0,69024.0,0.072471]
[1730685651352,0.02799137,69025.0,69024.0,0.072471]
[1730685651553,0.10795603,69025.0,69024.0,0.072471]
[1730685651855,0.1599415,69025.0,69024.0,0.072471]
[1730685652164,0.1599415,69025.0,69024.0,0.075471]
[1730685652468,0.2324115,69025.0,69024.0,0.003]
[1730685653555,0.2324115,69025.0,69024.0,0.007]
[1730685653863,0.2324115,69025.0,69024.0,0.008]
[1730685654066,0.18042603,69025.0,69024.0,0.004]
[1730685654261,0.18046034,69025.0,69024.0,0.006]
[1730685654563,0.23244882,69025.0,69024.0,0.002]
[1730685657865,0.0362051,69025.0,69024.0,0.002]
[1730685661251,0.0353,69026.0,69024.0,0.002]
[1730685661562,0.36192001,69030.0,69029.0,0.072465]
[1730685661763,0.3608,69030.0,69029.0,0.11542501]
[1730685661966,0.3608,69030.0,69029.0,0.072465]
[1730685663259,0.3638,69030.0,69029.0,0.072465]
[1730685664067,0.3638,69030.0,69029.0,0.11541001]
[1730685664467,0.3658,69030.0,69029.0,0.11541001]
[1730685665064,0.3658,69030.0,69029.0,0.072465]
[1730685665376,0.31503539,69030.0,69029.0,0.072465]
[1730685665558,0.31503539,69030.0,69029.0,0.867865]
[1730685665559,0.005,69030.0,69029.0,0.867865]
[1730685665759,0.0361,69039.0,69038.0,0.072456]
[1730685666457,0.0361,69039.0,69038.0,1.572456]
[1730685666667,0.0361,69039.0,69038.0,0.072456]
[1730685666876,0.0371,69039.0,69038.0,0.072456]
[1730685667362,0.0361,69039.0,69038.0,0.072456]
[1730685667565,0.0381,69039.0,69038.0,0.072456]
[1730685668172,0.072456,69038.0,69035.0,0.05726177]
[1730685668369,0.072456,69038.0,69036.0,0.05726177]
[1730685668568,0.072456,69038.0,69035.0,0.05726177]
[1730685668966,0.0401,69039.0,69038.0,0.072456]
[1730685669276,0.0381,69039.0,69038.0,0.072456]
[1730685670270,0.0381,69039.0,69038.0,0.074456]
[1730685670972,0.0381,69039.0,69038.0,0.072456]
[1730685671568,0.0361,69039.0,69038.0,0.072456]
[1730685671764,0.0361,69039.0,69038.0,0.12971777]
[1730685672467,0.0361,69039.0,69038.0,0.072456]
[1730685672667,0.06447879,69039.0,69038.0,0.072456]
[1730685672884,0.06447879,69039.0,69038.0,0.21168624]
[1730685673174,0.14427277,69046.0,69038.0,0.13923024]
[1730685673175,0.072448,69046.0,69038.0,0.13923024]
[1730685673491,0.001,69039.0,69038.0,0.21168624]
[1730685673776,0.06347627,69044.0,69038.0,0.21168624]
[1730685674004,0.035,69051.0,69038.0,0.21168624]
[1730685674005,0.06347581,69043.0,69042.0,0.072452]
[1730685674179,0.06347581,69043.0,69042.0,0.433252]
[1730685674180,0.06347319,69043.0,69042.0,0.433252]
[1730685674867,0.06347319,69043.0,69042.0,0.57248224]
[1730685675980,0.06347319,69043.0,69042.0,0.57548224]
[1730685677274,0.06347319,69043.0,69042.0,0.58048224]
[1730685677581,0.02798835,69043.0,69042.0,0.58048224]
[1730685678276,0.0344,69058.0,69047.0,0.072446]
[1730685678472,0.07994918,69057.0,69056.0,0.072437]
[1730685678673,0.07994918,69057.0,69056.0,0.0516276]
[1730685679174,0.07994918,69057.0,69050.0,0.3608]
[1730685679368,0.07994918,69057.0,69056.0,0.072437]
[1730685679369,0.15238518,69057.0,69056.0,0.072437]
[1730685679569,0.07994918,69057.0,69056.0,0.072437]
[1730685679768,0.0474,69058.0,69057.0,0.072436]
[1730685679769,0.013,69058.0,69057.0,0.072436]
[1730685679976,0.006,69058.0,69057.0,0.072436]
[1730685681176,0.0365,69067.0,69059.0,0.072434]
[1730685681373,0.07924488,69067.0,69059.0,0.072434]
[1730685682784,0.07243,69063.0,69059.0,0.072434]
[1730685683384,0.3678,69060.0,69059.0,0.073434]
[1730685684277,0.3738,69060.0,69059.0,0.074434]
[1730685688173,0.013,69060.0,69059.0,0.074434]
[1730685690083,0.013,69060.0,69059.0,0.118729]
[1730685693885,0.0343,69074.0,69059.0,0.118729]
[1730685693886,0.0343,69074.0,69059.0,0.480695]
[1730685694196,0.0343,69074.0,69073.0,0.072419]
[1730685694680,0.1941531,69074.0,69073.0,0.072419]
[1730685694991,0.1941531,69074.0,69071.0,0.13923024]
[1730685695193,0.1598531,69073.0,69072.0,0.07242]
[1730685695896,0.10790458,69073.0,69071.0,0.13923024]
[1730685696197,0.34742229,69072.0,69071.0,0.21165124]
[1730685696393,0.1598531,69072.0,69071.0,0.21165124]
[1730685696591,0.10790458,69072.0,69071.0,0.21165124]
[1730685696894,0.1598531,69072.0,69071.0,0.21165124]
[1730685697090,0.10790458,69072.0,69071.0,0.21165124]
[1730685697593,0.10790458,69072.0,69071.0,0.21365124]
[1730685697983,0.07992655,69072.0,69071.0,0.21365124]
[1730685698189,0.10790087,69072.0,69071.0,0.21365124]
[1730685698383,0.10790087,69072.0,69071.0,0.2564978]
[1730685700092,0.10790087,69072.0,69071.0,0.2554978]
[1730685700292,0.10790087,69072.0,69071.0,0.2564978]
[1730685702793,0.18756919,69076.0,69075.0,0.072417]
[1730685702998,0.0357,69082.0,69081.0,0.072411]
[1730685703188,0.06367616,69082.0,69081.0,0.21164124]
[1730685704098,0.13608616,69082.0,69081.0,0.072411]
[1730685704302,0.13608616,69082.0,69081.0,0.073411]
[1730685704799,0.13608616,69082.0,69081.0,0.072411]
[1730685705098,0.13608616,69082.0,69081.0,0.001]
[1730685706002,0.13608616,69082.0,69081.0,0.002]
[1730685707091,0.13608637,69082.0,69081.0,0.002]
[1730685709093,0.10811,69082.0,69081.0,0.002]
[1730685709795,0.13608638,69082.0,69081.0,0.002]
[1730685711114,0.13608638,69082.0,69074.0,0.072418]
[1730685711115,0.072416,69076.0,69074.0,0.072418]
[1730685711407,0.13586004,69075.0,69074.0,0.072418]
[1730685711604,0.135865,69075.0,69074.0,0.072418]
[1730685712205,0.063448,69075.0,69074.0,0.073418]
[1730685713003,0.063448,69075.0,69074.0,0.072418]
[1730685713209,0.063448,69075.0,69074.0,0.073418]
[1730685713399,0.064448,69075.0,69074.0,0.073418]
[1730685717297,0.10890435,69075.0,69074.0,0.073418]
[1730685717707,0.064448,69075.0,69074.0,0.073418]
[1730685718012,0.14432099,69080.0,69076.0,0.072416]
[1730685718303,0.072414,69078.0,69077.0,0.10707086]
[1730685718704,0.3608,69099.0,69077.0,0.6071011]
[1730685718905,0.15675309,69084.0,69083.0,0.57243924]
[1730685719104,0.15675309,69084.0,69083.0,0.8072558]
[1730685719303,0.15675309,69084.0,69083.0,1.8172558]
[1730685719807,0.15675309,69084.0,69083.0,0.8072558]
[1730685720506,0.15675309,69084.0,69083.0,0.80709403]
[1730685720711,0.15675309,69084.0,69083.0,0.85162532]
[1730685721102,0.23016109,69084.0,69083.0,0.55579764]
[1730685721416,0.23016109,69084.0,69083.0,0.54226141]
[1730685722209,0.23016109,69084.0,69083.0,0.46985241]
[1730685722406,0.15775309,69084.0,69083.0,0.54226141]
[1730685723601,0.15775309,69084.0,69083.0,0.62820664]
[1730685723804,0.23016109,69084.0,69083.0,0.46985241]
[1730685724012,0.23016109,69084.0,69083.0,0.47020868]
[1730685724916,0.39000141,69084.0,69083.0,0.002]
[1730685727906,0.23324832,69084.0,69083.0,0.002]
[1730685728913,0.14583735,69084.0,69083.0,0.002]
[1730685729213,0.18130301,69084.0,69083.0,0.002]
[1730685730006,0.60892525,69084.0,69073.0,0.072419]
[1730685730310,0.072422,69070.0,69068.0,0.3608]
[1730685730612,0.18031701,69070.0,69068.0,0.3608]
[1730685730812,0.10789501,69070.0,69068.0,0.3608]
[1730685731116,0.06344121,69070.0,69069.0,0.07459473]
[1730685732119,0.10788766,69070.0,69069.0,0.00617173]
[1730685732316,0.13586321,69070.0,69069.0,0.00617173]
[1730685732508,0.13586321,69070.0,69044.0,1.01088]
[1730685732509,0.07243,69063.0,69051.0,0.072442]
[1730685732714,0.14467436,69059.0,69052.0,0.13923024]
[1730685733017,0.14467436,69058.0,69057.0,0.21166624]
[1730685733216,0.14467436,69058.0,69057.0,0.32033386]
[1730685733413,0.14467436,69058.0,69057.0,0.32029083]
[1730685734322,0.14467436,69058.0,69057.0,0.21566624]
[1730685734710,0.14467436,69058.0,69057.0,0.3245844]
[1730685735013,0.14567436,69058.0,69057.0,0.3245844]
[1730685735215,0.21810936,69058.0,69057.0,0.18535416]
[1730685735718,0.21810936,69058.0,69057.0,0.004]
[1730685735921,0.14567436,69058.0,69057.0,0.001]
[1730685736216,0.3573396,69058.0,69057.0,0.001]
[1730685736406,0.21810936,69058.0,69057.0,0.001]
[1730685736608,0.14567436,69058.0,69057.0,0.21266624]
[1730685737124,0.14567436,69058.0,69057.0,0.21566624]
[1730685737820,0.14567436,69058.0,69057.0,0.21266624]
[1730685738015,0.07243,69063.0,69057.0,0.14023024]
[1730685738211,0.3608,69065.0,69057.0,0.14023024]
[1730685738514,0.072423,69069.0,69062.0,0.13923024]
[1730685738715,0.072421,69071.0,69069.0,0.072423]
[1730685739021,0.072422,69070.0,69069.0,0.072423]
[1730685739408,0.3608,69072.0,69063.0,0.0364]
[1730685739619,0.3608,69072.0,69071.0,0.072421]
[1730685740025,0.072413,69079.0,69071.0,0.13923024]
[1730685740208,0.17333024,69085.0,69075.0,0.072416]
[1730685740520,0.072416,69076.0,69075.0,0.072416]
[1730685741018,0.072413,69080.0,69077.0,0.072415]
[1730685741212,0.072413,69079.0,69077.0,0.072415]
[1730685742317,0.3618,69078.0,69077.0,0.072415]
[1730685742523,0.439214,69078.0,69077.0,0.072415]
[1730685743810,0.006,69078.0,69077.0,0.21164524]
[1730685744014,0.001,69078.0,69077.0,0.072415]
[1730685744224,0.005,69078.0,69077.0,0.072415]
[1730685745524,0.005,69078.0,69077.0,0.18036641]
[1730685747322,0.03297605,69078.0,69077.0,0.072415]
[1730685747515,0.19218588,69078.0,69077.0,0.072415]
[1730685747715,0.11289695,69078.0,69077.0,0.072415]
[1730685748030,0.19218588,69078.0,69077.0,0.072415]
[1730685748321,0.11289695,69078.0,69077.0,0.072415]
[1730685750925,0.19196026,69078.0,69077.0,0.71862524]
[1730685751121,0.11289695,69078.0,69077.0,0.71862524]
[1730685753120,0.11289695,69078.0,69077.0,0.28434524]
[1730685753323,0.11289695,69078.0,69077.0,0.71862524]
[1730685753824,0.15898421,69080.0,69077.0,1.59654884]
[1730685753825,0.15698421,69080.0,69077.0,1.59654884]
[1730685754022,0.05193978,69097.0,69091.0,0.0724]
[1730685754225,0.05193932,69099.0,69098.0,0.072393]
[1730685754426,0.1,69100.0,69099.0,0.072392]
[1730685755837,0.101,69100.0,69099.0,0.073392]
[1730685756135,0.101,69100.0,69099.0,0.4772325]
[1730685756423,0.101,69100.0,69099.0,0.868352]
[1730685756628,0.103,69100.0,69099.0,0.869352]
[1730685757029,0.103,69100.0,69099.0,0.90387746]
[1730685757416,0.05029291,69100.0,69099.0,0.90387746]
[1730685757724,0.05029291,69100.0,69099.0,0.96113362]
[1730685757930,0.05029291,69100.0,69099.0,1.97112519]
[1730685758316,0.05029291,69100.0,69099.0,1.97012519]
[1730685758521,0.04929291,69100.0,69099.0,1.91387746]
[1730685759516,0.04929291,69100.0,69099.0,1.95675483]
[1730685759734,0.04929291,69100.0,69099.0,1.91387746]
[1730685760431,0.04929291,69100.0,69099.0,1.95675387]
[1730685760628,0.04929291,69100.0,69099.0,1.91387746]
[1730685762825,0.04929291,69100.0,69099.0,1.75451964]
[1730685762826,0.1291778,69100.0,69099.0,1.75451964]
[1730685763135,0.1291778,69100.0,69099.0,1.82691164]
[1730685763726,0.1291778,69100.0,69099.0,1.47971746]
[1730685763926,0.15714159,69100.0,69099.0,1.47971746]
[1730685764231,0.20906304,69100.0,69099.0,1.47971746]
[1730685764822,0.15714159,69100.0,69099.0,1.47971746]
[1730685765432,0.15714159,69100.0,69099.0,1.59163746]
[1730685766128,0.18780128,69109.0,69099.0,1.59163746]
[1730685766329,0.18780128,69107.0,69101.0,0.07239]
[1730685766532,0.18780128,69107.0,69106.0,0.57241524]
[1730685766731,0.0348,69114.0,69106.0,0.57241524]
[1730685767032,0.0348,69114.0,69113.0,0.433177]
[1730685767332,0.0348,69114.0,69113.0,0.072377]
[1730685767525,0.0348,69114.0,69107.0,0.13923024]
[1730685767526,0.35356182,69114.0,69107.0,0.13923024]
[1730685767719,0.31876182,69111.0,69107.0,0.13923024]
[1730685767931,0.31876182,69111.0,69110.0,0.07238]
[1730685769129,0.31876182,69111.0,69106.0,0.3608]
[1730685769130,0.072381,69110.0,69106.0,0.3608]
[1730685769341,0.1243035,69110.0,69108.0,0.072383]
[1730685769522,0.0519225,69109.0,69108.0,0.072383]
[1730685769724,0.31876182,69109.0,69108.0,0.072383]
[1730685769921,0.39114382,69109.0,69108.0,0.072383]
[1730685770923,0.39114382,69109.0,69108.0,0.073383]
[1730685771518,0.39114382,69109.0,69108.0,0.072383]
[1730685771720,0.31876182,69109.0,69108.0,0.073383]
[1730685772425,0.32076182,69109.0,69108.0,0.073383]
[1730685773128,0.31876182,69109.0,69108.0,0.072383]
[1730685773326,0.32076182,69109.0,69108.0,0.072383]
[1730685773827,0.39314382,69109.0,69108.0,0.072383]
[1730685776629,0.32076182,69109.0,69108.0,0.072383]
[1730685777739,0.28454452,69109.0,69108.0,0.072383]
[1730685778534,0.28454452,69109.0,69108.0,0.25443507]
[1730685778935,0.28454452,69109.0,69108.0,0.14411718]
[1730685779446,0.28454452,69109.0,69108.0,0.18270168]
[1730685779935,0.002,69109.0,69108.0,0.18270168]
[1730685780439,0.3955,69120.0,69119.0,0.072371]
[1730685780640,0.21157724,69142.0,69119.0,0.072371]
[1730685780641,0.36192001,69135.0,69134.0,0.072355]
[1730685780841,0.3608,69135.0,69134.0,0.05722811]
[1730685781136,0.3608,69135.0,69132.0,1.082357]
[1730685781137,0.072355,69134.0,69132.0,1.082357]
[1730685781331,0.28254452,69133.0,69132.0,0.072357]
[1730685782032,0.072357,69132.0,69131.0,0.07153915]
[1730685782237,0.35490152,69132.0,69131.0,0.07153915]
[1730685782733,0.35490152,69132.0,69131.0,0.11029083]
[1730685783434,0.35490152,69132.0,69131.0,0.18364883]
[1730685783637,0.35490152,69132.0,69131.0,0.18464883]
[1730685784645,0.28254452,69132.0,69131.0,0.32387907]
[1730685784841,0.34594206,69132.0,69131.0,0.21358824]
[1730685785733,0.34594176,69132.0,69131.0,0.21358824]
[1730685786043,0.34594172,69132.0,69131.0,0.21358824]
[1730685786240,0.31050081,69132.0,69131.0,0.21358824]
[1730685787843,0.10781995,69132.0,69131.0,0.21358824]
[1730685788041,0.06339719,69132.0,69131.0,0.21358824]
[1730685789433,0.06339719,69132.0,69131.0,0.21158824]
[1730685790040,0.02795629,69132.0,69131.0,0.21158824]
[1730685790349,0.28254452,69132.0,69131.0,0.072358]
[1730685790544,0.34593897,69132.0,69131.0,0.072358]
[1730685791742,0.06339445,69132.0,69131.0,0.21158824]
[1730685792846,0.072351,69138.0,69131.0,0.13923024]
[1730685793049,0.28254452,69133.0,69132.0,0.072357]
[1730685795647,0.35490052,69133.0,69132.0,0.072357]
[1730685798150,0.072376,69114.0,69113.0,0.1296023]
[1730685798449,0.31200154,69114.0,69113.0,0.1296023]
[1730685798645,0.31200154,69114.0,69113.0,0.072377]
[1730685799344,0.31200154,69114.0,69113.0,0.100377]
[1730685799535,0.31200154,69114.0,69113.0,0.028]
[1730685800741,0.45123178,69114.0,69113.0,0.028]
[1730685800944,0.31200154,69114.0,69113.0,0.028]
[1730685801459,0.31200154,69114.0,69113.0,0.011]
[1730685802041,0.31200154,69114.0,69113.0,0.005]
[1730685802236,0.31200154,69114.0,69113.0,0.001]
[1730685804253,0.45123178,69114.0,69088.0,0.17633024]
[1730685804448,0.45123178,69114.0,69097.0,0.072394]
[1730685804449,0.31201854,69098.0,69097.0,0.072394]
[1730685805456,0.072399,69093.0,69092.0,0.072399]
[1730685805645,0.072403,69091.0,69090.0,0.072401]
[1730685805851,0.23962554,69088.0,69087.0,1.083205]
[1730685806046,0.23962554,69088.0,69087.0,1.082405]
[1730685806456,0.31202954,69088.0,69087.0,1.082405]
[1730685807152,0.31202954,69088.0,69087.0,1.01]
[1730685807457,0.072406,69086.0,69084.0,0.433208]
[1730685807758,0.31203154,69086.0,69084.0,0.072408]
[1730685808349,0.23962554,69086.0,69084.0,0.072408]
[1730685808548,0.31203254,69085.0,69084.0,0.072408]
[1730685808747,0.072409,69083.0,69082.0,1.04562174]
[1730685808947,0.31203454,69083.0,69082.0,1.04474174]
[1730685809457,0.31203454,69083.0,69082.0,1.01]
[1730685810543,0.23962554,69083.0,69079.0,0.072412]
[1730685810744,0.3608,69088.0,69070.0,0.0362]
[1730685810745,0.23962554,69080.0,69070.0,0.0362]
[1730685810950,0.45127178,69076.0,69075.0,0.00217123]
[1730685811654,0.31204154,69076.0,69075.0,0.00217123]
[1730685812650,0.31204154,69076.0,69075.0,0.01617123]
[1730685812958,0.31204154,69076.0,69075.0,0.03017123]
[1730685813352,0.26130873,69076.0,69075.0,0.03017123]
[1730685813652,0.31204154,69076.0,69075.0,0.03017123]
[1730685814753,0.45127178,69076.0,69075.0,0.03017123]
[1730685815456,0.45127178,69076.0,69061.0,0.3947]
[1730685815457,1.08519648,69076.0,69058.0,0.05686636]
[1730685815660,0.23886554,69059.0,69058.0,0.10654333]
[1730685815954,0.23886554,69059.0,69058.0,1.082435]
[1730685815955,0.14463231,69059.0,69058.0,1.082435]
[1730685816658,0.14463231,69059.0,69058.0,1.095435]
[1730685817260,0.14463231,69059.0,69058.0,1.109435]
[1730685817864,0.3608,69068.0,69058.0,1.109435]
[1730685818047,0.3608,69081.0,69058.0,1.109435]
[1730685818048,0.072419,69074.0,69072.0,0.07242]
[1730685818254,0.11184,69076.0,69068.0,0.0354]
[1730685818449,0.07242,69073.0,69070.0,0.072422]
[1730685818663,0.14463231,69071.0,69070.0,0.072422]
[1730685819162,0.36216,69081.0,69070.0,0.072422]
[1730685819163,0.3608,69081.0,69070.0,0.072422]
[1730685819366,0.14463231,69073.0,69069.0,0.3608]
[1730685819555,0.14863231,69074.0,69072.0,0.13923024]
[1730685819750,0.3608,69081.0,69072.0,0.13923024]
[1730685820060,0.14463231,69077.0,69076.0,0.072416]
[1730685821758,0.14463231,69077.0,69076.0,0.075416]
[1730685822351,0.14463231,69077.0,69076.0,0.080416]
[1730685822761,0.072407,69086.0,69085.0,0.072407]
[1730685823155,0.21703931,69086.0,69085.0,0.072407]
[1730685825056,0.21803931,69086.0,69085.0,0.072407]
[1730685825569,0.21903931,69086.0,69085.0,0.072407]
[1730685825754,0.22303931,69086.0,69085.0,0.072407]
[1730685826269,0.072407,69085.0,69084.0,1.01076]
[1730685826482,0.072407,69085.0,69081.0,0.05686636]
[1730685826483,0.21703931,69085.0,69082.0,0.072409]
[1730685826658,0.005,69086.0,69082.0,0.072409]
[1730685826965,0.07241,69082.0,69081.0,0.05686636]
[1730685827168,0.14463231,69082.0,69081.0,0.16394998]
[1730685827364,0.14463231,69082.0,69081.0,1.22745164]
[1730685827567,0.14463231,69082.0,69081.0,1.31312339]
[1730685827869,0.14463231,69082.0,69081.0,1.22745164]
[1730685828471,0.14463231,69082.0,69081.0,1.31412339]
[1730685828875,0.14563231,69082.0,69081.0,1.31312339]
[1730685829080,0.14563231,69082.0,69081.0,1.31612339]
[1730685829576,0.14563231,69082.0,69081.0,1.31512409]
[1730685830672,0.21704231,69082.0,69081.0,0.30512409]
[1730685830969,0.14463231,69082.0,69081.0,0.21745234]
[1730685831172,0.14463231,69082.0,69081.0,0.49143373]
[1730685831367,0.09390712,69082.0,69081.0,0.49142485]
[1730685831566,0.23842755,69082.0,69081.0,0.24631386]
[1730685831772,0.23842755,69082.0,69081.0,0.10908362]
[1730685831968,0.20179648,69082.0,69081.0,0.10908362]
[1730685832169,0.27420648,69082.0,69081.0,0.10708362]
[1730685832476,0.27420648,69082.0,69081.0,0.10908362]
[1730685832677,0.32614962,69082.0,69081.0,0.03667262]
[1730685833676,0.32614962,69082.0,69081.0,0.03767262]
[1730685834064,0.23225137,69082.0,69081.0,0.03767262]
[1730685834265,0.23225137,69082.0,69081.0,0.03667262]
[1730685834266,0.18030823,69082.0,69081.0,0.03667262]
[1730685834463,0.18030823,69082.0,69081.0,0.03467262]
[1730685834676,0.18130823,69082.0,69081.0,0.008]
[1730685834873,0.26038918,69082.0,69081.0,0.008]
[1730685835065,0.39861942,69082.0,69073.0,1.01076]
[1730685835273,0.072421,69071.0,69070.0,0.072421]
[1730685835469,0.10789823,69071.0,69070.0,0.13923024]
[1730685835772,0.14455585,69074.0,69073.0,0.072419]
[1730685836077,0.18032085,69074.0,69073.0,0.072419]
[1730685836473,0.2524587,69074.0,69073.0,0.072419]
[1730685836666,0.10790285,69074.0,69073.0,0.072419]
[1730685838273,0.10790285,69074.0,69073.0,0.077419]
[1730685838472,0.14455585,69075.0,69073.0,0.50737276]
[1730685838681,0.14455585,69075.0,69074.0,0.31608401]
[1730685839177,0.23846297,69075.0,69074.0,0.31608401]
[1730685839375,0.23846297,69075.0,69074.0,0.41603439]
[1730685839574,0.23846297,69075.0,69074.0,0.57074608]
[1730685839769,0.23846297,69075.0,69074.0,0.41603439]
[1730685839970,0.14455585,69075.0,69074.0,0.7857251]
[1730685840283,0.14455585,69075.0,69074.0,0.91484662]
[1730685841479,0.14555585,69075.0,69074.0,0.7947251]
[1730685841677,0.14555585,69075.0,69074.0,0.65549486]
[1730685842081,0.14555585,69075.0,69074.0,0.66449486]
[1730685842288,0.14655585,69075.0,69074.0,0.48857485]
[1730685842575,0.14655585,69075.0,69074.0,0.43460102]
[1730685842785,0.14655585,69075.0,69074.0,0.43060102]
[1730685842972,0.14655585,69075.0,69074.0,0.43260102]
[1730685843170,0.14655585,69075.0,69074.0,0.58702527]
[1730685843369,0.31287997,69075.0,69074.0,0.33408401]
[1730685843771,0.31287997,69075.0,69074.0,0.33208401]
[1730685844074,0.24046297,69075.0,69074.0,0.33208401]
[1730685844466,0.23946297,69075.0,69074.0,0.32508401]
[1730685844669,0.23946297,69075.0,69074.0,0.33008401]
[1730685844883,0.23946297,69075.0,69074.0,0.32108401]
[1730685844884,0.23846297,69075.0,69074.0,0.32108401]
[1730685845069,0.23946297,69075.0,69074.0,0.32808401]
[1730685846381,0.23946297,69075.0,69074.0,0.32801408]
[1730685846593,0.33985693,69075.0,69074.0,0.084418]
[1730685847278,0.19530108,69075.0,69074.0,0.084418]
[1730685849078,0.23076963,69075.0,69074.0,0.084418]
[1730685851072,0.2307705,69075.0,69074.0,0.084418]
[1730685853386,0.27522793,69075.0,69074.0,0.084418]
[1730685853575,0.16732412,69075.0,69074.0,0.12237583]
[1730685854780,0.16732412,69075.0,69074.0,0.012]
[1730685855484,0.16732412,69075.0,69074.0,0.06950716]
[1730685857578,0.16732412,69075.0,69074.0,0.012]
[1730685858093,0.16732412,69075.0,69070.0,0.05750716]
[1730685858390,0.072422,69070.0,69069.0,0.05750716]
[1730685858774,0.072423,69069.0,69068.0,0.05750716]
[1730685858987,0.16633012,69069.0,69068.0,0.05750716]
[1730685859384,0.072425,69068.0,69067.0,0.05750716]
[1730685859581,0.16633212,69068.0,69067.0,0.05750716]
[1730685859984,0.072429,69065.0,69064.0,0.072428]
[1730685860182,0.09390712,69065.0,69064.0,0.072428]
[1730685860486,0.16633512,69065.0,69064.0,0.072428]
[1730685861391,0.16633512,69065.0,69064.0,0.10755427]
[1730685862086,0.16833512,69065.0,69064.0,0.11255427]
[1730685862773,0.16833512,69065.0,69064.0,0.077428]
[1730685864875,0.66836536,69065.0,69064.0,0.005]
[1730685865083,0.66836536,69065.0,69064.0,0.06249645]
[1730685865283,0.66836536,69065.0,69064.0,0.005]
[1730685865493,0.70301458,69065.0,69064.0,0.005]
[1730685867488,0.52913512,69065.0,69064.0,0.015]
[1730685867990,0.45670712,69065.0,69064.0,0.087429]
[1730685868289,0.42046505,69065.0,69064.0,0.087429]
[1730685871291,0.42046505,69065.0,69064.0,0.12212542]